bitfinex/quotes_ETHUSD_20250425
["timestamp","ask_amount","ask_price","bid_price","bid_amount"]
[1745561130840,1.86902807,1769.8,1769.6,0.52849841]
[1745561131040,0.31708668,1769.8,1769.6,0.52849841]
[1745561131414,0.31708668,1769.8,1769.7,0.52849841]
[1745561132139,1.13028668,1769.8,1769.7,0.52849841]
[1745561132441,0.8,1769.7,1769.3,4.688]
[1745561132646,0.76614139,1769.6,1769.3,4.688]
[1745561132821,0.76614139,1769.6,1769.4,0.52828718]
[1745561133020,1.08322807,1769.6,1769.4,0.52828718]
[1745561133343,1.08322807,1769.6,1769.3,4.688]
[1745561134409,1.08322807,1769.6,1769.4,0.52799425]
[1745561135016,4.49855242,1769.6,1769.3,4.688]
[1745561135551,4.18146574,1769.6,1769.3,4.688]
[1745561136324,4.18146574,1769.6,1769.4,0.52789462]
[1745561136668,4.18146574,1769.6,1769.3,4.688]
[1745561137647,4.18146574,1769.6,1769.4,0.52777346]
[1745561138018,4.18146574,1769.6,1769.3,4.688]
[1745561138219,4.18146574,1769.6,1769.3,5.1568]
[1745561138527,3.41532435,1769.6,1769.3,5.1568]
[1745561138711,3.41532435,1769.6,1769.3,5.9588]
[1745561139227,3.41532435,1769.6,1769.4,0.52774365]
[1745561139428,3.41532435,1769.6,1769.3,5.9588]
[1745561140330,3.41532435,1769.6,1769.3,5.49]
[1745561140953,3.41532435,1769.6,1769.4,0.52769245]
[1745561141273,3.41532435,1769.6,1769.3,5.49]
[1745561142377,4.18146574,1769.6,1769.3,4.688]
[1745561143442,1.18146574,1769.6,1769.3,4.688]
[1745561144970,1.18146574,1769.6,1769.3,5.9218]
[1745561144971,0.41532435,1769.6,1769.3,5.9218]
[1745561145170,1.11708668,1769.7,1769.3,5.9218]
[1745561145359,1.11708668,1769.7,1769.4,0.52771099]
[1745561145659,1.11708668,1769.7,1769.3,5.9218]
[1745561146342,1.11708668,1769.7,1769.3,5.453]
[1745561146546,0.8141,1769.5,1769.3,4.688]
[1745561149046,1.95329238,1769.6,1769.3,4.688]
[1745561149472,1.95329238,1769.6,1769.4,0.52808584]
[1745561150175,1.95329238,1769.6,1769.3,4.688]
[1745561150480,1.95329238,1769.6,1769.3,5.1568]
[1745561150796,1.18715099,1769.6,1769.4,0.52824806]
[1745561151091,0.43275099,1769.6,1769.3,5.9072]
[1745561151249,0.31708668,1769.7,1769.3,5.9072]
[1745561151661,0.31708668,1769.6,1769.3,5.9072]
[1745561151868,0.31708668,1769.6,1769.4,0.59072]
[1745561152386,0.7389418,1769.6,1769.5,0.52836555]
[1745561152585,0.31708668,1769.6,1769.5,0.52836555]
[1745561152783,0.31708668,1769.7,1769.5,0.52836555]
[1745561153288,0.31708668,1769.7,1769.4,0.59072]
[1745561153689,0.31708668,1769.6,1769.4,0.59072]
[1745561154580,1.52994139,1769.8,1769.4,0.59072]
[1745561154778,1.52994139,1769.8,1769.3,5.4384]
[1745561155052,0.31697718,1769.7,1769.5,0.52880891]
[1745561155587,0.31697718,1769.6,1769.5,0.52880891]
[1745561155789,0.31697718,1769.6,1769.3,5.4384]
[1745561156121,0.31697718,1769.6,1769.4,0.52887407]
[1745561156285,0.31697718,1769.5,1769.4,0.52887407]
[1745561156592,0.31697718,1769.5,1769.4,1.12560148]
[1745561162330,0.31697718,1769.5,1769.4,0.52887407]
[1745561162490,3.31697718,1769.5,1769.4,0.52887407]
[1745561163613,0.31697718,1769.5,1769.4,6.93550739]
[1745561164007,0.31697718,1769.5,1769.4,7.48550739]
[1745561164628,0.31697718,1769.9,1769.5,6.43399299]
[1745561164836,0.31697718,1769.9,1769.6,5.3323993]
[1745561164995,0.31697718,1769.9,1769.6,5.86127337]
[1745561165198,0.31697718,1769.9,1769.7,0.52887407]
[1745561165823,0.31697718,1769.9,1769.8,0.52887407]
[1745561166300,0.2777516,1770.0,1769.8,0.52887407]
[1745561167113,0.2777516,1770.0,1769.9,0.52887407]
[1745561167311,1.04389299,1770.0,1769.9,0.52887407]
[1745561167802,1.36095343,1770.0,1769.6,5.3323993]
[1745561168004,1.36095343,1770.0,1769.7,0.53323993]
[1745561168336,0.59481204,1770.0,1769.7,1.31773993]
[1745561168637,0.2777516,1770.0,1769.8,0.52785931]
[1745561168937,0.2777516,1770.0,1769.9,0.52785931]
[1745561169410,0.2777516,1770.0,1769.9,1.31235931]
[1745561171355,0.2777516,1770.0,1769.9,2.00862187]
[1745561171822,0.2777516,1770.0,1769.9,7.65865859]
[1745561172025,0.2777516,1770.0,1769.9,8.97479998]
[1745561173053,0.29478217,1770.7,1770.6,5.647803]
[1745561173201,0.31706044,1770.8,1770.7,6.19748404]
[1745561173405,0.31706044,1770.8,1770.7,6.98428404]
[1745561173629,0.31706044,1770.8,1770.7,7.97208734]
[1745561173856,0.31706044,1770.8,1770.7,12.52836121]
[1745561174144,1.2004658,1771.8,1771.3,0.7823]
[1745561174370,0.4092658,1771.8,1771.4,4.688]
[1745561174532,0.4092658,1771.8,1771.5,0.4688]
[1745561175043,0.4092658,1771.8,1771.5,4.688]
[1745561175246,0.4092658,1771.8,1771.3,4.688]
[1745561175247,0.76614139,1771.7,1771.3,4.688]
[1745561175562,0.8169,1771.4,1771.2,4.688]
[1745561176555,0.76614139,1771.3,1770.8,0.7706]
[1745561176768,0.76614139,1771.3,1771.1,4.686]
[1745561177260,0.8169,1771.4,1770.8,1.06909056]
[1745561177420,0.8169,1771.4,1770.8,5.75509056]
[1745561178853,0.76614139,1771.3,1770.8,4.686]
[1745561180254,0.76614139,1771.3,1771.2,0.03552972]
[1745561184364,1.19721577,1771.4,1771.2,0.03552972]
[1745561196083,0.43107438,1771.4,1771.2,0.03552972]
[1745561196266,1.55334139,1771.5,1771.2,0.03552972]
[1745561206292,0.76614139,1771.3,1771.2,0.03552972]
[1745561206791,0.76614139,1771.3,1771.2,0.56292162]
[1745561207391,0.76614139,1771.3,1771.2,0.03552972]
[1745561209206,0.76614139,1771.3,1770.9,4.696]
[1745561209576,0.76614139,1771.3,1771.0,0.52748324]
[1745561210198,0.76614139,1771.3,1771.1,0.52748324]
[1745561210393,0.76614139,1771.3,1771.2,0.52748324]
[1745561210864,0.76614139,1771.3,1770.9,4.696]
[1745561211058,0.76614139,1771.3,1770.9,5.24338]
[1745561211381,0.76614139,1771.3,1771.0,0.52746579]
[1745561211967,0.76614139,1771.3,1771.1,0.52746579]
[1745561212298,0.76614139,1771.3,1770.8,0.7778]
[1745561212501,0.76614139,1771.0,1770.6,5.4927]
[1745561212688,0.76614139,1771.0,1770.7,0.52763566]
[1745561213300,0.76614139,1771.0,1770.6,5.4927]
[1745561216391,0.76614139,1771.0,1770.6,6.04197]
[1745561216696,0.781,1771.2,1770.6,6.04197]
[1745561217005,0.76614139,1771.3,1770.7,0.77]
[1745561224411,0.76614139,1771.3,1770.8,4.684]
[1745561227315,0.76614139,1771.1,1770.8,4.684]
[1745561227524,0.7893,1771.0,1770.8,4.684]
[1745561227696,0.7893,1771.0,1770.8,5.2294]
[1745561227896,0.76614139,1771.1,1770.8,5.2294]
[1745561228104,1.57464139,1771.1,1770.8,5.2294]
[1745561229517,1.57464139,1771.1,1770.8,4.6622]
[1745561231087,0.42339904,1771.4,1770.8,4.6622]
[1745561231088,1.57854139,1771.3,1770.8,4.6622]
[1745561231496,3.0,1771.6,1770.9,0.7596]
[1745561231497,0.7521,1771.5,1770.9,0.7596]
[1745561231809,1.51824139,1771.7,1771.0,0.7596]
[1745561232010,1.51824139,1771.7,1771.1,0.8183]
[1745561232219,1.51824139,1771.7,1771.1,1.46476865]
[1745561232418,1.51824139,1771.7,1771.2,4.684]
[1745561233626,0.42019272,1771.9,1771.4,5.64522373]
[1745561233829,0.42019272,1771.9,1771.5,0.7992]
[1745561234010,1.17540719,1771.8,1771.5,0.7992]
[1745561234202,1.17540719,1771.8,1771.2,4.684]
[1745561234203,1.92760719,1771.8,1771.4,4.684]
[1745561234414,1.17540719,1771.8,1771.4,5.79899368]
[1745561234913,0.4092658,1771.8,1771.4,4.684]
[1745561236933,0.807,1772.5,1771.8,6.46035912]
[1745561237121,0.807,1772.5,1771.9,10.32763881]
[1745561237500,0.76614139,1772.4,1771.9,4.684]
[1745561237700,0.76614139,1772.4,1771.9,5.79843591]
[1745561237902,0.76614139,1772.4,1771.9,4.684]
[1745561238720,0.76614139,1772.4,1771.9,10.3275694]
[1745561238999,0.76614139,1772.4,1772.0,0.8073]
[1745561242243,0.76614139,1772.2,1772.0,0.8073]
[1745561244728,0.76614139,1772.2,1771.9,4.684]
[1745561244954,0.76614139,1772.2,1771.9,5.23305]
[1745561245151,0.76614139,1772.0,1771.8,0.8065]
[1745561245321,0.76614139,1772.0,1771.9,4.695]
[1745561245518,0.76614139,1772.0,1771.5,0.8065]
[1745561245719,0.7828,1772.2,1771.8,4.695]
[1745561245936,0.76614139,1771.9,1771.8,4.695]
[1745561246540,1.58754139,1771.9,1771.5,0.8065]
[1745561246744,0.76614139,1771.7,1771.6,4.695]
[1745561250331,0.76614139,1771.7,1771.5,4.695]
[1745561251328,0.76614139,1771.7,1771.5,4.696]
[1745561252333,0.76614139,1771.7,1771.5,5.1656]
[1745561253167,1.19856428,1771.9,1771.6,0.7602]
[1745561255564,1.19856428,1771.9,1771.5,5.1656]
[1745561256054,0.76614139,1771.7,1771.6,4.696]
[1745561257338,0.76614139,1771.7,1771.2,0.774]
[1745561257543,0.76614139,1771.5,1771.2,5.47]
[1745561257771,0.76614139,1771.5,1771.2,6.08164687]
[1745561258234,1.52304139,1771.5,1771.2,6.08164687]
[1745561258635,1.52304139,1771.5,1771.2,4.696]
[1745561258636,0.76614139,1771.3,1771.2,4.696]
[1745561259965,0.7569,1771.5,1771.2,4.696]
[1745561259966,1.52304139,1771.5,1771.2,4.696]
[1745561262964,0.76614139,1771.6,1771.2,4.696]
[1745561263673,0.76614139,1771.7,1771.3,0.7814]
[1745561268773,0.76614139,1771.5,1771.2,4.696]
[1745561268980,0.73061167,1771.3,1771.2,4.696]
[1745561269473,0.73061167,1771.3,1771.1,6.13646865]
[1745561269651,0.73061167,1771.3,1771.1,5.34246865]
[1745561271082,1.14493512,1771.3,1771.1,5.34246865]
[1745561271845,1.96353512,1771.3,1771.1,4.696]
[1745561272053,1.96353512,1771.3,1770.9,4.705]
[1745561272349,0.76614139,1771.1,1770.9,4.705]
[1745561273284,0.8136,1771.0,1770.9,4.705]
[1745561276755,0.76614139,1771.1,1770.9,4.705]
[1745561286291,0.76614139,1771.1,1770.9,5.1755]
[1745561288189,0.76614139,1771.1,1770.9,4.6447]
[1745561292915,1.18046484,1771.3,1770.9,4.6447]
[1745561293219,0.76614139,1771.3,1771.0,0.82]
[1745561295680,0.76614139,1771.1,1771.0,0.82]
[1745561295921,0.76614139,1771.1,1770.9,4.6447]
[1745561297587,1.58664139,1771.1,1770.9,4.6447]
[1745561298804,0.76614139,1771.1,1770.7,0.0422264]
[1745561299002,1.58174139,1770.8,1770.7,0.0422264]
[1745561299681,2.0134701,1770.8,1770.7,0.0422264]
[1745561307490,0.76614139,1770.5,1770.3,4.706]
[1745561319812,1.24732871,1770.8,1770.3,5.2531]
[1745561320048,1.24732871,1770.8,1770.4,0.8165]
[1745561320049,0.43172871,1770.8,1770.4,0.8165]
[1745561320257,1.04292135,1770.9,1770.4,0.8165]
[1745561320434,0.76614139,1770.9,1770.4,0.8165]
[1745561320673,0.76614139,1770.9,1770.4,1.98832382]
[1745561321750,1.18422028,1770.9,1770.4,1.98832382]
[1745561321956,0.76614139,1770.7,1770.4,1.98832382]
[1745561329160,1.19703174,1770.9,1770.4,1.98832382]
[1745561329356,0.76614139,1770.9,1770.4,1.98832382]
[1745561330759,1.19365256,1770.9,1770.4,1.98832382]
[1745561331063,1.19365256,1770.9,1770.4,0.8165]
[1745561332974,0.42751117,1770.9,1770.6,6.47333404]
[1745561333134,0.7898,1771.3,1770.7,0.8257]
[1745561333334,0.7898,1771.3,1770.9,0.8257]
[1745561333534,1.55594139,1771.4,1770.9,0.8257]
[1745561334157,0.76614139,1771.2,1770.9,0.8257]
[1745561338863,1.19622417,1771.2,1770.9,0.8257]
[1745561339887,0.76614139,1771.0,1770.9,0.8257]
[1745561340046,0.76614139,1771.0,1770.8,5.4734]
[1745561340471,0.76614139,1771.0,1770.8,6.02074]
[1745561343487,0.76614139,1771.0,1770.8,4.686]
[1745561347571,0.76614139,1771.1,1770.8,4.686]
[1745561350303,0.76614139,1771.1,1770.9,0.8266]
[1745561350872,1.23480199,1771.2,1770.9,0.8266]
[1745561350873,0.41530199,1771.2,1770.9,0.8266]
[1745561351073,0.76614139,1771.3,1770.9,1.37786]
[1745561351806,1.18541761,1771.3,1770.9,1.37786]
[1745561353904,0.41927622,1771.3,1770.9,1.37786]
[1745561354214,0.76614139,1771.4,1770.9,1.37786]
[1745561355185,1.10487307,1771.6,1771.0,0.7611]
[1745561355510,0.76614139,1771.5,1771.0,0.7611]
[1745561357388,0.76614139,1771.5,1771.1,0.7902]
[1745561362009,0.76614139,1771.3,1771.1,0.7902]
[1745561365321,0.76614139,1771.5,1771.1,0.7902]
[1745561370237,0.43347092,1771.6,1771.1,0.7902]
[1745561370410,1.0452791,1771.7,1771.2,4.684]
[1745561370599,1.0452791,1771.7,1771.3,0.8216]
[1745561371013,0.76614139,1771.5,1771.3,0.8216]
[1745561372092,0.76614139,1771.5,1771.2,4.6585]
[1745561372093,1.55984139,1771.5,1771.2,4.6585]
[1745561372299,0.76614139,1771.3,1771.2,4.6585]
[1745561372497,0.76614139,1771.3,1770.9,6.00696]
[1745561372797,0.76614139,1771.3,1770.9,5.4557]
[1745561374723,0.72421964,1771.3,1770.9,5.4557]
[1745561377137,0.76614139,1771.5,1771.0,0.7675]
[1745561381908,0.76614139,1771.3,1771.0,0.7675]
[1745561382125,0.76614139,1771.1,1770.9,4.684]
[1745561384632,1.54934139,1771.1,1770.7,1.3512]
[1745561384840,0.76614139,1771.1,1770.8,4.684]
[1745561386744,1.19568199,1771.1,1770.8,4.684]
[1745561392114,0.4295406,1771.1,1770.8,4.684]
[1745561392313,0.7832,1771.2,1770.9,0.4684]
[1745561392619,0.8122,1771.4,1771.0,0.7553]
[1745561394949,1.24217621,1771.4,1771.0,0.7553]
[1745561396007,0.42997621,1771.4,1771.0,0.7553]
[1745561396213,1.51624139,1771.6,1771.0,0.7553]
[1745561396412,1.51624139,1771.6,1771.0,1.44234308]
[1745561397326,1.51624139,1771.6,1771.0,0.7553]
[1745561399557,1.94945162,1771.6,1771.0,0.7553]
[1745561400340,0.76614139,1771.4,1771.0,0.7553]
[1745561405031,0.76614139,1771.4,1771.1,0.7989]
[1745561405427,1.94945162,1771.6,1771.1,0.7989]
[1745561405629,1.94945162,1771.6,1771.1,1.44344153]
[1745561405922,0.43321023,1771.6,1771.3,0.8082]
[1745561406134,1.54734139,1771.9,1771.3,0.8082]
[1745561406648,1.97071994,1771.9,1771.4,0.55]
[1745561407218,2.25427137,1771.9,1771.4,0.55]
[1745561407419,2.25427137,1771.9,1771.3,0.8082]
[1745561407420,0.76614139,1771.7,1771.3,0.8082]
[1745561409327,0.76614139,1771.7,1771.3,3.8082]
[1745561414253,1.18951994,1771.9,1771.5,0.7972]
[1745561414429,0.42337855,1771.9,1771.6,3.0]
[1745561414624,0.76614139,1772.0,1771.7,1.0972]
[1745561415345,0.76614139,1772.0,1771.7,0.7972]
[1745561415732,0.8283,1772.1,1771.5,0.7644]
[1745561415733,0.76614139,1771.8,1771.5,0.7644]
[1745561420246,0.76614139,1771.6,1771.2,4.684]
[1745561420453,0.76614139,1771.6,1771.3,0.7726]
[1745561421934,0.76614139,1771.8,1771.3,0.7726]
[1745561423437,0.76614139,1771.8,1771.3,6.41816374]
[1745561423637,0.76614139,1771.8,1771.4,0.64181637]
[1745561423856,0.7833,1771.7,1771.4,0.64181637]
[1745561424159,0.76614139,1771.8,1771.3,5.4546]
[1745561425926,0.7552,1771.7,1771.3,5.4546]
[1745561426533,0.76614139,1771.6,1771.3,0.7726]
[1745561426832,0.76614139,1771.6,1771.3,4.682]
[1745561427037,0.76614139,1771.6,1771.3,5.28048]
[1745561428041,0.7552,1771.7,1771.3,5.28048]
[1745561431347,1.57244139,1771.8,1771.3,5.28048]
[1745561437389,1.57244139,1771.8,1771.3,4.682]
[1745561437885,0.76614139,1771.6,1771.3,4.682]
[1745561438089,1.59624139,1771.6,1771.3,4.682]
[1745561438288,0.8301,1771.5,1770.9,0.4684]
[1745561438498,0.76614139,1771.1,1770.8,5.4431]
[1745561438797,0.8301,1771.2,1770.8,7.68121]
[1745561442362,1.24632912,1771.2,1770.8,7.68121]
[1745561442563,0.76614139,1771.1,1770.8,6.92011]
[1745561443404,0.76614139,1771.1,1770.8,4.682]
[1745561443591,0.37723998,1771.1,1770.8,4.682]
[1745561445568,0.768,1771.0,1770.8,4.682]
[1745561446674,0.76614139,1770.9,1770.5,4.683]
[1745561446989,0.76614139,1770.9,1770.5,5.1513]
[1745561447191,0.8106,1770.8,1770.5,4.683]
[1745561448789,1.52474139,1771.1,1770.6,0.8034]
[1745561450399,0.7586,1771.1,1770.6,0.8034]
[1745561457119,0.7586,1771.1,1770.6,6.45108126]
[1745561457292,0.41622912,1771.2,1770.8,0.8245]
[1745561457491,4.54864139,1771.3,1770.5,11.64715633]
[1745561457492,4.54864139,1771.3,1770.6,1.3745]
[1745561457816,0.7825,1771.2,1770.6,1.3745]
[1745561458518,0.7825,1771.2,1770.6,7.02228172]
[1745561459126,1.21335384,1771.2,1770.6,7.02228172]
[1745561459435,1.21335384,1771.2,1770.7,0.70222817]
[1745561459644,1.21335384,1771.2,1770.6,1.3745]
[1745561460718,0.8225,1771.0,1770.6,0.55]
[1745561461918,0.8225,1771.0,1770.5,4.683]
[1745561462796,3.43085384,1771.2,1770.4,4.684]
[1745561462797,0.8324,1770.8,1770.4,4.684]
[1745561463140,0.7747,1770.6,1770.4,4.684]
[1745561464322,0.7747,1770.6,1770.4,5.1524]
[1745561465209,0.7747,1770.6,1770.4,4.684]
[1745561465526,1.19055952,1770.6,1770.4,4.684]
[1745561480435,0.41585952,1770.6,1770.4,4.684]
[1745561480639,0.8097,1770.7,1770.4,4.684]
[1745561483767,1.22320823,1770.7,1770.4,4.684]
[1745561483975,0.41350823,1770.7,1770.5,1.2989]
[1745561484172,3.0,1771.0,1770.5,6.94701911]
[1745561484385,0.7653,1771.1,1770.6,0.55]
[1745561486544,1.19185613,1771.1,1770.6,0.55]
[1745561487197,1.19185613,1771.1,1770.7,0.8018]
[1745561489997,0.42655613,1771.1,1770.7,0.8018]
[1745561490282,4.55674139,1771.3,1770.7,0.8018]
[1745561490452,4.55674139,1771.3,1770.8,0.55]
[1745561490453,3.7906,1771.3,1770.8,0.55]
[1745561490652,0.7906,1771.3,1770.9,0.7647]
[1745561490845,0.7784,1771.4,1770.9,0.7647]
[1745561494177,1.21205185,1771.4,1770.9,0.7647]
[1745561495581,0.43365185,1771.4,1770.9,0.7647]
[1745561495886,4.58354139,1771.5,1770.9,0.7647]
[1745561496089,0.7649,1771.7,1771.1,0.7699]
[1745561496250,0.7649,1771.7,1771.2,6.41559576]
[1745561496452,0.7649,1771.9,1771.3,0.7699]
[1745561497487,0.76614139,1771.8,1771.3,0.7699]
[1745561500085,0.76614139,1771.8,1771.3,6.41546135]
[1745561500255,0.76614139,1771.8,1771.5,0.777]
[1745561500786,0.41438194,1771.8,1771.5,0.777]
[1745561501088,0.76614139,1772.0,1771.5,0.777]
[1745561501666,1.56914139,1772.0,1771.5,0.777]
[1745561502389,0.294482,1771.9,1771.5,0.777]
[1745561504392,0.70981971,1771.9,1771.5,0.777]
[1745561507161,0.70981971,1771.9,1771.7,0.7942]
[1745561508417,0.294482,1771.9,1771.8,0.7973]
[1745561508693,1.05564613,1772.3,1771.8,0.7973]
[1745561512482,1.47924723,1772.3,1771.8,0.7973]
[1745561512681,0.76614139,1772.1,1771.8,0.7973]
[1745561517183,1.48038771,1772.3,1771.8,0.7973]
[1745561517385,0.76614139,1772.3,1771.8,0.7973]
[1745561518608,1.04508221,1772.3,1771.8,0.7973]
[1745561520817,0.42529416,1772.3,1771.9,6.1935394]
[1745561520971,1.58454139,1772.6,1772.0,6.10945394]
[1745561521178,0.76614139,1772.4,1772.0,6.10945394]
[1745561522712,0.76614139,1772.4,1772.0,5.29935394]
[1745561523012,0.29438258,1772.5,1772.2,0.8277]
[1745561523222,1.04885494,1772.8,1772.2,0.8277]
[1745561523371,0.76614139,1772.6,1772.2,0.8277]
[1745561524118,0.29435549,1773.2,1772.5,0.55]
[1745561524423,0.42047609,1773.2,1772.9,0.8277]
[1745561524719,0.29428112,1773.1,1772.9,0.8277]
[1745561525220,0.29428112,1773.1,1772.6,10.32114658]
[1745561525221,1.88142251,1773.1,1772.6,0.787]
[1745561525388,1.06042251,1773.1,1772.6,5.467]
[1745561525577,0.29428112,1773.1,1772.8,0.787]
[1745561525976,0.76614139,1773.3,1772.8,0.787]
[1745561526212,1.18649049,1773.3,1772.8,0.787]
[1745561526918,0.76614139,1773.1,1772.8,0.787]
[1745561527287,0.76614139,1773.1,1772.7,0.5467]
[1745561527690,0.294241,1773.8,1773.4,0.7673]
[1745561527991,0.76614139,1774.7,1773.8,0.7673]
[1745561528196,0.76614139,1774.5,1773.9,0.55]
[1745561528701,0.76614139,1774.3,1773.8,0.7673]
[1745561528905,0.76614139,1773.9,1773.6,0.8331]
[1745561529105,0.42197627,1774.0,1773.6,0.8331]
[1745561529424,0.76614139,1774.2,1773.6,0.8331]
[1745561530961,0.76614139,1774.2,1773.4,6.18886944]
[1745561530962,0.76614139,1773.8,1773.4,0.7749]
[1745561531427,0.76614139,1773.8,1773.1,5.5031]
[1745561531606,0.8045,1773.9,1773.2,6.18929953]
[1745561531805,3.76614139,1774.0,1773.3,6.46415033]
[1745561532018,3.76614139,1774.0,1773.4,0.64641503]
[1745561532922,3.76614139,1774.0,1773.3,6.46426672]
[1745561533523,3.76614139,1774.0,1773.4,4.677]
[1745561538042,0.4679,1774.7,1773.9,0.8107]
[1745561538349,0.76614139,1774.7,1773.9,5.4867]
[1745561538533,1.18343766,1774.7,1773.9,5.4867]
[1745561538702,0.76614139,1774.5,1773.9,5.4867]
[1745561539418,0.76614139,1774.5,1773.9,11.12382567]
[1745561539623,0.76614139,1774.5,1774.0,1.11238257]
[1745561539931,0.76614139,1774.7,1774.0,1.11238257]
[1745561540147,3.76614139,1774.7,1774.1,6.4472506]
[1745561540444,0.76614139,1774.7,1774.1,6.44714155]
[1745561540599,0.76614139,1774.7,1774.2,5.63622023]
[1745561540937,0.76614139,1774.9,1774.3,0.56362202]
[1745561541098,0.76614139,1774.9,1774.2,5.63633013]
[1745561541298,0.001,1775.0,1774.3,5.4419]
[1745561541526,0.76614139,1774.9,1774.3,5.4419]
[1745561542333,0.76714139,1775.0,1774.3,11.07761271]
[1745561542516,0.76614139,1774.8,1774.4,1.10776127]
[1745561542725,0.76614139,1774.6,1774.0,1.11238257]
[1745561543110,0.76614139,1774.6,1774.0,6.74924913]
[1745561543307,1.52644139,1774.8,1774.2,0.7792]
[1745561543528,0.76614139,1774.8,1774.2,11.09052811]
[1745561543811,0.76614139,1774.8,1774.3,1.10905281]
[1745561544010,0.76614139,1774.8,1774.2,5.4542]
[1745561544415,0.76614139,1774.4,1774.2,4.675]
[1745561544718,0.76614139,1774.4,1773.9,4.675]
[1745561545031,0.76614139,1774.2,1773.8,4.675]
[1745561546709,1.56524139,1774.2,1773.8,4.675]
[1745561546937,0.76614139,1774.0,1773.8,4.675]
[1745561547303,0.76614139,1774.0,1773.5,0.7795]
[1745561547304,0.76614139,1774.0,1773.5,5.6625]
[1745561547508,1.56524139,1774.2,1773.6,0.56625]
[1745561548406,1.56524139,1774.2,1773.5,0.7795]
[1745561549743,0.76614139,1774.0,1773.5,0.7795]
[1745561550112,0.76614139,1774.0,1773.3,22.6265]
[1745561550317,0.8165,1773.9,1773.3,22.6265]
[1745561550927,0.8165,1773.9,1773.3,29.0318046]
[1745561551266,0.8165,1773.9,1773.4,2.90318046]
[1745561551443,3.0,1774.2,1773.4,2.90318046]
[1745561551654,0.8037,1774.1,1773.4,2.90318046]
[1745561551961,1.56984139,1774.1,1773.4,2.90318046]
[1745561554521,1.56984139,1774.1,1773.4,8.54204962]
[1745561554716,1.56984139,1774.1,1773.5,0.85420496]
[1745561554959,0.8037,1774.1,1773.4,2.90318046]
[1745561555526,0.8037,1774.1,1773.4,8.54201389]
[1745561555734,0.8037,1774.1,1773.4,2.90318046]
[1745561556424,0.8037,1774.1,1773.4,8.54205564]
[1745561556722,0.8037,1774.1,1773.5,0.85420556]
[1745561556919,0.8037,1774.1,1773.4,2.90318046]
[1745561559821,1.56984139,1774.1,1773.4,2.90318046]
[1745561560022,1.56984139,1774.1,1773.4,0.55]
[1745561563245,1.56984139,1774.1,1773.3,5.7045]
[1745561563441,0.8309,1774.0,1773.3,5.7045]
[1745561565079,0.8309,1774.0,1773.3,11.34366411]
[1745561565380,0.8309,1774.0,1773.3,11.3435452]
[1745561565575,0.8309,1774.0,1773.4,1.13435452]
[1745561568285,0.8309,1774.0,1773.4,6.7730124]
[1745561568864,0.8309,1774.0,1773.4,6.77300765]
[1745561569065,0.8309,1774.0,1773.5,5.63852799]
[1745561569586,0.8309,1774.0,1773.4,6.01835452]
[1745561569779,0.8309,1774.0,1773.5,6.24029044]
[1745561570084,0.8309,1774.0,1773.5,0.60183545]
[1745561571287,0.8309,1774.0,1773.5,6.24038891]
[1745561571751,0.8309,1774.0,1773.7,5.63776732]
[1745561571951,0.8309,1774.0,1773.7,6.39250428]
[1745561572250,0.7718,1774.4,1773.8,6.27668868]
[1745561572452,0.7718,1774.4,1773.9,4.884]
[1745561572680,0.7718,1774.4,1774.0,6.39150147]
[1745561573076,0.7718,1774.4,1774.1,5.63653489]
[1745561573386,0.7718,1774.8,1774.2,5.63632966]
[1745561573587,0.7718,1774.8,1774.3,0.56363297]
[1745561574174,1.20071451,1774.8,1774.3,0.56363297]
[1745561574387,0.7718,1774.8,1774.3,0.56363297]
[1745561574693,0.7718,1774.8,1774.4,5.63561386]
[1745561574990,0.7718,1774.8,1774.5,5.63526754]
[1745561575189,0.001,1775.0,1774.6,5.63505372]
[1745561575763,0.001,1775.0,1774.5,5.63526449]
[1745561575987,0.001,1775.0,1774.6,0.56352645]
[1745561577005,0.001,1775.0,1774.5,5.63524693]
[1745561577298,0.001,1775.0,1774.6,5.63492322]
[1745561577616,0.001,1775.0,1774.5,5.63523354]
[1745561578876,0.001,1775.0,1774.7,5.63458703]
[1745561579093,0.001,1775.0,1774.7,4.844]
[1745561579296,0.001,1775.0,1774.8,0.4844]
[1745561580403,0.001,1775.0,1774.7,4.844]
[1745561580710,0.001,1775.0,1774.8,6.95231412]
[1745561580877,1.04191606,1776.0,1775.3,0.55]
[1745561581075,0.798,1775.6,1775.1,4.843]
[1745561581513,0.76614139,1775.5,1774.9,0.8065]
[1745561581715,0.798,1775.3,1775.0,4.843]
[1745561581881,0.798,1775.3,1775.0,5.3273]
[1745561583011,0.798,1775.3,1774.8,16.91]
[1745561583012,0.76614139,1775.1,1774.8,16.91]
[1745561583211,0.76614139,1775.1,1774.8,21.753]
[1745561583416,0.7954,1775.0,1774.8,4.843]
[1745561584324,0.7954,1775.0,1774.8,5.3273]
[1745561584617,0.76614139,1774.9,1774.5,4.843]
[1745561585723,0.7954,1775.0,1774.5,4.843]
[1745561587226,0.7954,1775.0,1774.6,5.6349469]
[1745561587393,0.7954,1775.0,1774.5,10.47820073]
[1745561588295,0.7776,1775.2,1774.7,6.18459064]
[1745561588498,0.7776,1775.2,1774.8,0.61845906]
[1745561588723,0.7776,1775.2,1774.8,6.25289163]
[1745561588930,0.7776,1775.2,1774.8,6.25275896]
[1745561589112,0.7776,1775.2,1774.8,0.61845906]
[1745561590093,0.7776,1775.2,1774.7,0.55]
[1745561590790,0.7776,1775.2,1774.6,0.8214]
[1745561591415,0.7776,1775.2,1774.7,0.55]
[1745561593150,0.7776,1775.2,1774.7,6.18465135]
[1745561593653,0.7776,1775.2,1774.7,0.55]
[1745561593844,0.7776,1775.2,1774.7,1.25063323]
[1745561594645,1.54374139,1775.2,1774.7,1.25063323]
[1745561595549,1.54374139,1775.2,1774.7,0.70063323]
[1745561595550,0.7638,1775.1,1774.7,0.70063323]
[1745561595748,0.76614139,1775.0,1774.5,4.843]
[1745561595915,0.76614139,1775.0,1774.5,10.47838793]
[1745561596121,0.76614139,1775.0,1774.5,10.4781408]
[1745561596320,0.7638,1775.1,1774.6,1.04781408]
[1745561596919,0.7638,1775.1,1774.7,6.18465664]